[Event "Chessable English Open-ch 2022"]
[Site "Kenilwoth"]
[Date "2022.05.21"]
[Round "5.5"]
[White "Derakhshani, Borna"]
[Black "Haydon, David L"]
[Result "1/2-1/2"]
[ECO "A06"]
[WhiteElo "2388"]
[BlackElo "2275"]
[Annotator "TA"]
[PlyCount "110"]
[EventDate "2022.05.18"]
[EventType "swiss"]
[EventCountry "ENG"]
[SourceTitle "playchess.com"]
[Source "ChessBase"]
[SourceQuality "1"]
[TimeControl "5400+30"]

{[%evp 9,110,15,18,9,19,21,28,24,20,20,44,35,52,32,52,45,55,37,36,36,58,51,58,72,76,66,88,91,89,90,92,86,80,83,91,97,93,87,93,31,28,29,39,41,39,39,39,39,63,58,65,19,43,0,85,85,83,78,118,114,121,114,114,107,116,101,180,150,142,116,249,246,234,231,273,275,305,168,358,336,335,107,107,107,107,107,107,0,0,0,0,0,0,0,0,0,0,0,0,0,0,0,0]} 1. Nf3 {[%emt 0:00:16]} d5 {[%emt 0:00:21]} 2. b3 {[%emt 0:00:09]} Bg4 {[%emt 0:00:23]} 3. Bb2 {[%emt 0:00:13]} Bxf3 {[%emt 0:00:23]} 4. exf3 {[%emt 0:00:04]} e6 {[%emt 0:00:32]} 5. g3 {[%emt 0:00:21]} Nf6 {[%emt 0:00:06]} 6. Bg2 {[%emt 0:00:09] A06: Réti Opening: 1 Nf3 d5.} g6 {[%emt 0:00:15]} 7. O-O {[%emt 0:00:11]} Bg7 {[%emt 0:00:13]} 8. f4 {[%emt 0:00:08] White has an edge.} O-O {[%emt 0:00:26]} 9. d4 {[%emt 0:03:28]} Nbd7 {[%emt 0:03:32]} 10. Nd2 {[%emt 0:01:16] [#]} Rc8 $146 {[%emt 0:03:34]} ({Predecessor:} 10... c6 11. Qe2 Ne8 12. c4 Nd6 13. Rfd1 a5 14. a4 Nf5 15. Nf3 Qb6 16. Qc2 Rfd8 {½-½ (68) Anton Guijarro,D (2674)-Bartholomew,J (2446) chess24.com INT 2019}) 11. Qe2 {[%emt 0:03:18]} Re8 {[%emt 0:07:11]} 12. Rfd1 {[%emt 0:07:24]} c5 {[%emt 0:03:55]} 13. dxc5 {[%emt 0:06:08]} Nxc5 {[%emt 0:01:15]} 14. c4 {[%emt 0:00:49]} Qb6 {[%emt 0:01:54]} 15. Bd4 {[%emt 0:01:02] A strong pair of Bishops.} Nh5 {[%emt 0:05:09]} 16. Qe3 {[%emt 0:04:58]} Bxd4 {[%emt 0:02:41]} 17. Qxd4 {[%emt 1:09:06]} Rcd8 {[%emt 0:14:57]} 18. cxd5 {[%emt 0:00:00]} exd5 {[%emt 0:00:44]} 19. Rac1 {[%emt 0:00:00]} ({Of course not} 19. Bxd5 $6 Nf6 20. Nc4 Rxd5 $1 $11) 19... Ne6 {[%emt 0:00:54]} 20. Qxb6 {[%emt 0:00:00] White is more active.} axb6 {[%emt 0:00:07]} 21. Nf1 {[%emt 0:00:00]} Nf6 {[%emt 0:01:55]} 22. Ne3 {[%emt 0:00:00][%cal Re3d5]} d4 {[%emt 0:02:12]} 23. Nc4 {[%emt 0:00:00]} b5 {[%emt 0:01:05]} 24. Ne5 {[%emt 0:00:00]} (24. Na5 $16) 24... Nd5 $14 {[%emt 0:04:12]} 25. Rd2 {[%emt 0:00:00]} Re7 {[%emt 0:03:37]} 26. Bxd5 {[%emt 0:00:00]} Rxd5 {[%emt 0:00:37]} 27. Rc8+ {[%emt 0:00:00]} Kg7 {[%emt 0:00:47]} 28. Nd3 {[%emt 0:00:00]} Rd8 {[%emt 0:14:43]} 29. Rxd8 {[%emt 0:00:00]} Nxd8 {[%emt 0:00:27][%mdl 4096] Endgame KRN-KRN} 30. Ne5 {[%emt 0:00:00]} (30. Kf1 $14 {is superior.}) 30... Ne6 $11 {[%emt 0:03:52]} 31. Rc2 {[%emt 0:00:00]} Rc7 {[%emt 0:01:32]} (31... Kf6 $11 {remains equal.}) 32. Rxc7 $16 {[%emt 0:00:00]} Nxc7 {[%emt 0:00:05] KN-KN} 33. Nf3 {[%emt 0:00:00]} Kf6 {[%emt 0:07:48]} 34. Nxd4 {[%emt 0:00:00]} Ke7 {[%emt 0:00:42]} 35. Kf1 {[%emt 0:00:00]} Kd6 {[%emt 0:00:18]} 36. Ke2 {[%emt 0:00:00]} Kc5 {[%emt 0:01:45]} 37. Kd3 {[%emt 0:00:00]} b4 {[%emt 0:01:18]} (37... Na6 $16 {is a better defense.}) 38. Nf3 {[%emt 0:00:00] Strongly threatening Ne5.} f6 {[%emt 0:01:21] Prevents Ne5.} 39. Nd2 {[%emt 0:00:00]} Kd5 {[%emt 0:03:08]} (39... f5 $16 40. Nf1 Nd5) 40. Ne4 $18 {[%emt 0:00:00]} Ne8 {[%emt 0:00:35] [#]} 41. f3 $1 {[%emt 0:00:00]} h6 {[%emt 0:01:59]} 42. Nf2 {[%emt 0:00:00]} f5 {[%emt 0:02:05]} 43. Nd1 {[%emt 0:00:00]} (43. Ke3 $142) 43... Nd6 $2 {[%emt 0:02:52]} (43... Nc7 44. Ne3+ Kc5) 44. Ne3+ {[%emt 0:00:00]} Kc5 {[%emt 0:00:01] [#]} 45. Ng2 $2 {[%emt 0:00:00]} (45. g4 $1 $18 {[%cal Rg4f5]} b6 46. h3) 45... Nc8 $16 {[%emt 0:00:42]} 46. h3 {[%emt 0:00:04]} Ne7 {[%emt 0:02:35]} 47. Ne3 {[%emt 0:00:22]} h5 {[%emt 0:00:40]} 48. Nc4 {[%emt 0:02:01]} (48. h4 $16) 48... h4 $1 $11 {[%emt 0:00:33] The position is equal.} 49. gxh4 {[%emt 0:00:25] Hoping for Ne5.} Nd5 {[%emt 0:00:08]} 50. Ne5 {[%emt 0:00:42]} Nxf4+ {[%emt 0:00:07]} 51. Ke3 {[%emt 0:00:34]} Ng2+ {[%emt 0:00:17]} 52. Kf2 {[%emt 0:00:18]} Nf4 {[%emt 0:00:29]} 53. Ke3 {[%emt 0:09:43]} Ng2+ {[%emt 0:00:07]} 54. Kd3 {[%emt 0:01:44]} Nf4+ {[%emt 0:00:15]} 55. Ke3 {[%emt 0:00:29]} Ng2+ {[%emt 0:00:06] White really could win this.  Weighted Error Value: White=0.15 (very precise) /Black=0.18 (very precise)} 1/2-1/2

[Event "Chessable English Open-ch 2022"]
[Site "Kenilwoth"]
[Date "2022.05.21"]
[Round "5.6"]
[White "Hackner, Oskar A"]
[Black "Boswell, Jacob Connor"]
[Result "0-1"]
[ECO "A20"]
[WhiteElo "2177"]
[BlackElo "2075"]
[Annotator "TA"]
[PlyCount "150"]
[EventDate "2022.05.18"]
[EventType "swiss"]
[EventCountry "ENG"]
[SourceTitle "playchess.com"]
[Source "ChessBase"]
[SourceQuality "1"]
[TimeControl "5400+30"]

{[%evp 9,150,12,0,4,6,0,0,0,0,0,0,-11,0,0,13,12,27,9,37,0,37,16,4,0,10,20,14,29,12,0,0,-17,-18,-4,11,18,23,0,0,0,0,-12,-7,-13,-13,0,-6,-6,14,24,18,0,0,-27,0,-117,-113,-190,-175,-182,-170,-177,-175,-350,-362,-336,-304,-398,-392,-424,-387,-597,-473,-383,-376,-377,-377,-377,-377,-377,-377,-372,-356,-358,-356,-354,-302,-300,-275,-355,-350,-354,-356,-434,-433,-405,-399,-604,-595,-1292,-1096,-2633,-1840,-1631,-1180,-1136,-1420,-1097,-977,-29962,-1660,-1524,-1467,-29968,-29969,-29970,-29971,-29970,-29972,-29972,-29973,-29973,-29974,-29974,-29975,-29975,-29975,-29975,-29976,-29976,-29977,-29978,-29979,-29979,-29980,-29979,-29980,-29980,-29981,-29981,-29982,-29983,-29982]} 1. c4 {[%emt 0:00:04]} e5 {[%emt 0:04:33]} 2. g3 {[%emt 0:00:09]} Nf6 {[%emt 0:00:21]} 3. Bg2 {[%emt 0:00:07]} c6 {[%emt 0:00:30]} 4. d4 {[%emt 0:00:35]} e4 {[%emt 0:00:37]} 5. Nc3 {[%emt 0:00:59]} d5 {[%emt 0:02:05]} 6. Bg5 {[%emt 0:01:09] A20: English Opening: 1...e5.} Bb4 {[%emt 0:02:26]} 7. Qb3 {[%emt 0:02:47]} Bxc3+ {[%emt 0:04:46]} 8. Qxc3 {[%emt 0:01:55] The position is equal.} O-O {[%emt 0:04:47]} 9. cxd5 {[%emt 0:11:19]} cxd5 {[%emt 0:00:23]} 10. Nh3 {[%emt 0:00:38]} Nbd7 {[%emt 0:06:26]} 11. O-O {[%emt 0:00:59] [#]} b6 $146 {[%emt 0:15:31]} ({Predecessor:} 11... h6 12. Bf4 Re8 13. Rac1 Nf8 14. Bc7 Qe7 15. f3 Ng6 16. Qb3 Bf5 17. Nf4 Nxf4 18. Bxf4 exf3 19. exf3 {½-½ (35) Fridman,D (2653)-Huschenbeth,N (2509) Osterburg 2012}) 12. Qa3 {[%emt 0:12:09]} a5 {[%emt 0:06:04]} 13. Rfc1 {[%emt 0:19:09]} Bb7 {[%emt 0:23:24]} 14. f3 {[%emt 0:08:52]} (14. Bf4 $5 {[%cal Rf4c7]}) 14... exf3 {[%emt 0:03:11]} 15. Bxf3 {[%emt 0:00:56]} h6 {[%emt 0:02:35]} 16. Bf4 {[%emt 0:00:58]} g5 {[%emt 0:03:18]} 17. Bc7 {[%emt 0:06:11] This bishop pair is nice.} Qe8 {[%emt 0:00:06]} 18. Nf2 {[%emt 0:02:44]} Qe6 {[%emt 0:00:52]} 19. Qd6 {[%emt 0:04:33]} Qe3 {[%emt 0:04:13]} 20. Rd1 {[%emt 0:10:53]} Ba6 {[%emt 0:04:36] Inhibits Rd3.} 21. Rac1 {[%emt 0:01:33]} Rfe8 {[%emt 0:01:33]} 22. Rc3 {[%emt 0:00:30]} Qe6 {[%emt 0:00:29]} 23. Re1 {[%emt 0:02:01]} Rac8 {[%emt 0:01:47]} 24. Qxe6 {[%emt 0:01:51]} Rxe6 {[%emt 0:00:52]} 25. g4 {[%emt 0:04:15]} Ne8 {[%emt 0:05:14]} 26. Bg3 {[%emt 0:00:13] aiming for Rxc8.} Rxc3 {[%emt 0:00:38]} 27. bxc3 {[%emt 0:00:05]} Bc4 {[%emt 0:00:22]} 28. a3 {[%emt 0:00:16]} Nd6 {[%emt 0:01:04]} 29. Bxd6 {[%emt 0:00:49]} Rxd6 {[%emt 0:00:04]} 30. e4 {[%emt 0:00:10]} Re6 {[%emt 0:00:36]} 31. Rb1 {[%emt 0:01:31]} dxe4 {[%emt 0:00:38]} 32. Bxe4 {[%emt 0:00:22] [#]} (32. Nxe4 $11 {was the only way to keep the balance.} b5 33. Kf2) 32... Nf6 $1 $17 {[%emt 0:00:57] Black keeps a firm grip on the game.} 33. Bf3 {[%emt 0:06:18]} (33. Bf5 $17 Re3 34. Nd1 (34. Rxb6 $2 Re1+ 35. Kg2 Bd5+ 36. Be4 Nxe4 $19) 34... Re1+ 35. Kf2 Re2+ 36. Kf3) 33... Re3 $19 {[%emt 0:00:47][%csl LRc3,LRf3]} 34. Kg2 {[%emt 0:00:00]} Rxc3 {[%emt 0:00:31]} 35. Rxb6 {[%emt 0:00:00]} Nd5 {[%emt 0:00:14]} 36. Bxd5 {[%emt 0:00:00]} (36. Rb8+ Kg7 37. Ne4 Nf4+ 38. Kf2 Nh3+ 39. Kg3 Rxa3 40. Rc8) 36... Bxd5+ {[%emt 0:00:05][%mdl 4096] Endgame KRB-KRN} 37. Kf1 {[%emt 0:00:00]} Bf3 {[%emt 0:00:35]} ({Don't go for} 37... Rxa3 $2 38. Ke1 $19) 38. Nh3 {[%emt 0:01:25]} Bxg4 {[%emt 0:00:45]} 39. Ng1 {[%emt 0:00:08]} Rxa3 {[%emt 0:01:13]} 40. Rxh6 {[%emt 0:00:11]} (40. d5 {might work better.}) 40... a4 {[%emt 0:00:45][%cal Ba5a4,Ba4a3][%mdl 32]} 41. d5 {[%emt 0:00:36]} Rd3 {[%emt 0:00:25]} 42. Ra6 {[%emt 0:00:10]} a3 {[%emt 0:00:12]} 43. h3 {[%emt 0:01:17]} Bxh3+ {[%emt 0:00:27]} 44. Ke2 {[%emt 0:00:05]} Bf5 {[%emt 0:00:59]} 45. d6 {[%emt 0:00:37]} Rd5 {[%emt 0:00:17] ( -> ...Bd3+)} 46. Rxa3 {[%emt 0:00:06]} Rxd6 {[%emt 0:00:06]} 47. Rg3 {[%emt 0:00:19]} Rg6 {[%emt 0:01:06]} 48. Nf3 {[%emt 0:00:08] [#]} f6 {[%emt 0:00:30][%cal Bf7f6,Bf6f5][%mdl 32]} 49. Ke3 {[%emt 0:00:09]} Kf7 {[%emt 0:00:14]} 50. Rg1 {[%emt 0:00:13]} Rg8 {[%emt 0:00:15]} 51. Kf2 {[%emt 0:00:12]} Be4 {[%emt 0:00:31]} 52. Nd4 {[%emt 0:00:50]} f5 {[%emt 0:00:27]} 53. Ke3 {[%emt 0:00:23]} (53. Nb5 $142 Kf6 54. Nc3) 53... Kf6 {[%emt 0:00:22] Hoping for ...Rh8.} 54. Ra1 {[%emt 0:00:10]} Ra8 {[%emt 0:01:09] Against Ra6+} 55. Rc1 {[%emt 0:01:05]} Ra3+ {[%emt 0:00:16]} 56. Kf2 {[%emt 0:00:12]} Ke5 {[%emt 0:00:27]} 57. Ne2 {[%emt 0:00:10]} Ra2 {[%emt 0:00:34] ...Bd3 is the strong threat.} 58. Rc5+ {[%emt 0:00:21]} Kd6 {[%emt 0:00:20]} 59. Rc4 {[%emt 0:00:43]} Bd5 {[%emt 0:00:21]} (59... Bb7 $142 60. Rd4+ Ke5 61. Rd8 Ba6 62. Re8+ Kd5 63. Rd8+ Ke6 64. Rg8 Rxe2+ 65. Kf3 g4+ 66. Kg3 Re3+ 67. Kf2 Re2+ 68. Kg3 Bb5 69. Kh4 Ke5 70. Kh5 Kf4 71. Rb8 Be8+ 72. Kh6 g3 73. Kg7 g2 74. Rb1 Ke5 75. Rc1 f4 76. Rc5+ Ke4 77. Rc1 Ke5 78. Rc5+ Ke4 79. Rc4+ Kf3 80. Kf8 g1=Q 81. Rxf4+ Kg3 82. Rf3+ Kh2 83. Rh3+ Kg2 84. Rh6 Qf2+ 85. Rf6 Qxf6+ 86. Kg8 Qf7+ 87. Kh8 Qf8+ 88. Kh7 Re7#) 60. Rc8 {[%emt 0:01:01]} Bb7 {[%emt 0:00:38]} 61. Rf8 {[%emt 0:00:52]} Ba6 {[%emt 0:00:38] Black mates.} 62. Rxf5 {[%emt 0:00:14]} Rxe2+ {[%emt 0:00:22] KRB-KR} 63. Kf3 {[%emt 0:00:08]} Re5 {[%emt 0:00:21]} 64. Rf6+ {[%emt 0:00:55]} Re6 {[%emt 0:00:15]} 65. Rf5 {[%emt 0:00:16]} Rg6 {[%emt 0:00:19]} 66. Kg3 {[%emt 0:00:08]} Bc8 {[%emt 0:00:29]} 67. Rb5 {[%emt 0:00:23]} Be6 {[%emt 0:00:14]} 68. Ra5 {[%emt 0:00:13]} Ke7 {[%emt 0:00:08]} 69. Ra7+ {[%emt 0:00:09]} Kf6 {[%emt 0:00:05]} 70. Rh7 {[%emt 0:00:07]} Rg7 {[%emt 0:00:31]} 71. Rh6+ {[%emt 0:00:10]} Kf5 {[%emt 0:00:24]} 72. Rh1 {[%emt 0:00:15]} Ra7 {[%emt 0:00:29]} 73. Rf1+ {[%emt 0:00:08]} Kg6 {[%emt 0:00:08]} 74. Re1 {[%emt 0:00:08]} Ra3+ {[%emt 0:00:09]} 75. Kh2 {[%emt 0:00:09]} Bf5 {[%emt 0:00:19] Weighted Error Value: White=0.42/Black=0.15 (very precise)} 0-1

[Event "Chessable English Open-ch 2022"]
[Site "Kenilwoth"]
[Date "2022.05.21"]
[Round "5.7"]
[White "Pert, Richard G"]
[Black "Watson, Jacob"]
[Result "1-0"]
[ECO "B23"]
[WhiteElo "2415"]
[BlackElo "1922"]
[Annotator "TA"]
[PlyCount "95"]
[EventDate "2022.05.18"]
[EventType "swiss"]
[EventCountry "ENG"]
[SourceTitle "playchess.com"]
[Source "ChessBase"]
[SourceQuality "1"]
[TimeControl "5400+30"]

{[%evp 18,95,0,0,16,-24,-24,-25,-58,-68,-48,-128,-135,-125,-121,-125,-122,-130,-122,-120,-123,-122,-124,-126,-62,-62,-62,-64,-3,0,321,328,325,324,316,294,404,397,376,0,0,0,302,302,302,293,291,291,390,397,602,596,664,554,525,522,29978,29979,29998,29973,29967,29962,29960,29964,29962,29963,5031,3329,29974,29975,29982,29983,29986,29987,29987,29988,29988,29989,29989,29990]} 1. e4 {[%emt 0:00:07]} c5 {[%emt 0:00:34]} 2. Nc3 {[%emt 0:00:25]} Nc6 {[%emt 0:01:07]} 3. Bb5 {[%emt 0:00:10]} e6 {[%emt 0:01:29]} 4. Bxc6 {[%emt 0:01:49]} bxc6 {[%emt 0:00:26]} 5. f4 {[%emt 0:00:51]} d5 {[%emt 0:04:40]} 6. d3 {[%emt 0:00:36]} Nf6 {[%emt 0:01:27]} 7. e5 {[%emt 0:00:50]} Nd7 {[%emt 0:00:19]} 8. Nf3 {[%emt 0:00:12]} Be7 {[%emt 0:02:14]} 9. O-O {[%emt 0:00:36]} O-O {[%emt 0:03:08]} 10. b3 $1 {[%emt 0:06:00][%mdl 4] is recently more successful than 10.Qe1.} Ba6 {[%emt 0:07:03] B23: Closed Sicilian: Lines without g3.} 11. Ne2 {[%emt 0:21:48]} c4 {[%emt 0:07:13]} 12. dxc4 {[%emt 0:05:20]} dxc4 {[%emt 0:00:23] [#] Black has an edge.} 13. Be3 $146 {[%emt 0:00:10]} ({Predecessor:} 13. Re1 Qb6+ 14. Kh1 Rfd8 15. Qd4 Bc5 16. Qe4 Bf2 17. Ng5 Nf8 18. Rf1 cxb3 19. axb3 {0-1 (31) Streit,H (1960)-Plachkinova,T (2169) Vlissingen 2009}) 13... Nb6 $1 {[%emt 0:06:04]} 14. Nfd4 {[%emt 0:02:18]} ({Better is} 14. Bd2 $15) 14... Nd5 $17 {[%emt 0:04:44]} 15. Bf2 {[%emt 0:00:56]} Qc7 {[%emt 0:00:52]} 16. c3 {[%emt 0:12:45]} c5 {[%emt 0:03:34] Prevents b4.} 17. Nf3 {[%emt 0:00:08]} cxb3 {[%emt 0:00:14]} 18. axb3 {[%emt 0:00:10]} Bxe2 {[%emt 0:03:56]} 19. Qxe2 {[%emt 0:00:04]} Nxf4 {[%emt 0:00:27]} 20. Qe4 {[%emt 0:00:59]} Ng6 {[%emt 0:07:18]} (20... Nd5 $17 21. Be1 Rab8) 21. h4 $15 {[%emt 0:01:19]} h5 $1 {[%emt 0:04:06]} 22. Rae1 {[%emt 0:02:08]} Rad8 {[%emt 0:08:45]} ({Black should try} 22... Rab8 $15 23. g4 Bd8) 23. g4 $1 $36 {[%emt 0:01:25][%cal Bg2g4,Bg4g5][%mdl 2080] White is pushing.} f5 $2 {[%emt 0:11:51][%mdl 8192]} (23... hxg4 $11 24. Qxg4 Rd3) 24. exf6 $1 $18 {[%emt 0:04:57][%mdl 64] [#] Discovered Attack} Rxf6 {[%emt 0:00:09]} 25. g5 {[%emt 0:01:07]} (25. gxh5 Nf8 $11) 25... Rxf3 {[%emt 0:03:13]} 26. Qxf3 {[%emt 0:03:25]} Rf8 {[%emt 0:00:58]} 27. Qxh5 {[%emt 0:09:38]} Qf4 {[%emt 0:04:01][%cal Oe7d6] [#] ( -> ...Bd6!)} 28. Re3 $2 {[%emt 0:05:19]} (28. Qxg6 Qg4+ 29. Kh1 Qh3+ 30. Kg1 Qg4+ 31. Kh1 Qh3+ 32. Kg1 Qg4+ $11) (28. Qe2 $18) 28... Bd6 $11 {[%emt 0:01:47][%csl Gd6][%cal Rf4h2]} 29. Rg3 {[%emt 0:00:10][%cal Be3g3,Bg3d3,Bd3d6][%mdl 32]} Qxh4 $2 {[%emt 0:03:15][%mdl 8192] Black is now going downhill.} 30. Qxh4 $18 {[%emt 0:02:40] Really sharp!} (30. Qxg6 {leads to mate.} Bxg3 31. Qxe6+ Kh8) 30... Nxh4 {[%emt 0:00:19]} 31. Rd3 {[%emt 0:00:19][%csl LRd6,LRh4]} Nf5 {[%emt 0:02:56]} 32. Ra1 {[%emt 0:01:11]} Rf7 {[%emt 0:02:15]} 33. Ra6 {[%emt 0:01:26]} Rd7 {[%emt 0:02:10]} (33... Be7 $142 34. Rxe6 Bxg5 35. Bxc5 Rc7) 34. Kg2 {[%emt 0:00:50]} Rb7 {[%emt 0:02:19]} 35. Raxd6 {[%emt 0:00:39]} Nxd6 {[%emt 0:00:10]} 36. Rxd6 {[%emt 0:00:07] g6 is the strong threat.} Rxb3 {[%emt 0:00:54][%mdl 4096] Endgame KRB-KR} 37. g6 {[%emt 0:00:36][%cal Rd6d8]} Kf8 {[%emt 0:00:27]} 38. Bxc5 {[%emt 0:00:17][%cal Rd6d8]} Ke8 {[%emt 0:00:08]} 39. Bd4 {[%emt 0:05:14]} Ke7 {[%emt 0:01:12]} 40. Ra6 {[%emt 0:00:06]} Rb5 {[%emt 0:00:40]} 41. Rxa7+ {[%emt 0:00:46]} Kd6 {[%emt 0:00:53]} 42. Rxg7 {[%emt 0:00:11] Threatening mate with Rg8.} Rg5+ {[%emt 0:00:11]} 43. Kf3 {[%emt 0:00:08] White mates.} e5 {[%emt 0:00:04]} 44. Be3 {[%emt 0:00:24]} Rh5 {[%emt 0:00:08]} 45. Rh7 {[%emt 0:00:45]} Rf5+ {[%emt 0:00:03]} 46. Ke4 {[%emt 0:00:33]} Rf8 {[%emt 0:00:15]} 47. g7 {[%emt 0:00:20]} Rg8 {[%emt 0:03:39]} 48. Bh6 {[%emt 0:12:16] Weighted Error Value: White=0.22 (precise) /Black=0.81} 1-0

[Event "Chessable English Open-ch 2022"]
[Site "Kenilwoth"]
[Date "2022.05.21"]
[Round "5.8"]
[White "Duncan, Patrick C M"]
[Black "Ashton, Adam G"]
[Result "1/2-1/2"]
[ECO "A01"]
[WhiteElo "2013"]
[BlackElo "2366"]
[Annotator "TA"]
[PlyCount "86"]
[EventDate "2022.05.18"]
[EventType "swiss"]
[EventCountry "ENG"]
[SourceTitle "playchess.com"]
[Source "ChessBase"]
[SourceQuality "1"]
[TimeControl "5400+30"]

{[%evp 12,86,0,0,8,11,15,15,4,0,0,0,33,-26,-19,-41,-23,-67,-12,-3,-12,-3,-5,-9,-8,-25,0,0,0,0,0,0,0,0,0,0,8,-12,-12,-12,8,-3,-3,-4,0,-1,0,0,0,-1,-4,-5,0,-8,0,0,0,-3,0,-3,-3,-3,0,0,0,0,0,0,0,0,0,0,0,0,0,0,0]} 1. b3 {[%emt 0:00:04]} e5 {[%emt 0:02:38]} 2. Bb2 {[%emt 0:01:11]} Nc6 {[%emt 0:00:06]} 3. e3 {[%emt 0:00:17]} d5 {[%emt 0:00:10]} 4. Bb5 {[%emt 0:00:22]} Bd6 {[%emt 0:00:10]} 5. f4 {[%emt 0:00:30]} f6 {[%emt 0:01:34]} 6. Qh5+ {[%emt 0:00:37]} g6 {[%emt 0:00:07]} 7. Qh4 {[%emt 0:00:08]} Nge7 {[%emt 0:01:15] A01: Nimzowitsch-Larsen Opening.} 8. Qxf6 {[%emt 0:04:01]} Rf8 {[%emt 0:01:04]} 9. Qh4 {[%emt 0:02:41] [#] And now fxe5 would win.} exf4 {[%emt 0:06:17]} 10. exf4 {[%emt 0:00:31] [#]} Rxf4 $146 {[%emt 0:10:15]} ({Predecessor:} 10... Bxf4 11. Ne2 Qd6 12. Ba3 Qe5 13. Qxe7+ Qxe7 14. Bxe7 Kxe7 15. Bxc6 bxc6 16. Nxf4 Rxf4 {0-1 (56) Bromann,T (2453)-Berg,E (2573) Denmark 2016}) 11. Qxh7 {[%emt 0:00:58]} Be6 {[%emt 0:03:54]} 12. Ne2 {[%emt 0:06:27]} ({Better is} 12. Nf3 $14) 12... Rf7 $1 $11 {[%emt 0:02:16][%mdl 1024] Black has compensation.} 13. Qh8+ {[%emt 0:03:38]} Rf8 {[%emt 0:00:49]} 14. Qh4 {[%emt 0:02:18]} Qd7 {[%emt 0:04:05]} (14... a6 $15 15. Bxc6+ Nxc6 16. Qxd8+ Rxd8) 15. Nbc3 {[%emt 0:04:36]} O-O-O {[%emt 0:05:39] ...a6 is the strong threat.} 16. O-O-O {[%emt 0:01:27]} a6 {[%emt 0:10:29]} 17. Bxc6 {[%emt 0:01:08]} Nxc6 {[%emt 0:00:10]} 18. Rdf1 {[%emt 0:02:26]} d4 {[%emt 0:06:46][%cal Bd5d4,Bd4d3][%mdl 32]} 19. Ne4 {[%emt 0:08:45] The position is equal.} ({Not} 19. Nxd4 $2 Be7 20. Qe4 Nxd4 $19) 19... d3 {[%emt 0:04:38]} 20. Nxd6+ {[%emt 0:13:29]} ({Don't play} 20. cxd3 Bf5 21. Kb1 Be5 22. Bxe5 Nxe5 $17) 20... Qxd6 {[%emt 0:00:41]} 21. Rxf8 {[%emt 0:01:05]} Rxf8 {[%emt 0:01:33]} 22. Nd4 {[%emt 0:06:51]} Nxd4 {[%emt 0:26:59]} (22... Rf4 $5 23. Qh8+ Rf8 $11) 23. Qxd4 {[%emt 0:00:51]} Qxh2 {[%emt 0:01:48]} 24. Qg1 {[%emt 0:10:54]} (24. Re1 {is more complex.} Qg3 25. Qe4 Bf5 26. Qe7) 24... Qxg1+ {[%emt 0:04:50]} 25. Rxg1 {[%emt 0:00:08][%mdl 4096] Endgame KRB-KRB} Bf5 {[%emt 0:00:45]} 26. cxd3 {[%emt 0:04:04]} Bxd3 {[%emt 0:00:06]} 27. Bd4 {[%emt 0:01:05]} Rf4 {[%emt 0:00:41]} 28. Be3 {[%emt 0:00:54]} Rf6 {[%emt 0:00:05]} 29. Kb2 {[%emt 0:01:14]} b6 {[%emt 0:00:11]} 30. Kc3 {[%emt 0:02:15]} Be4 {[%emt 0:00:04]} 31. Kd4 {[%emt 0:03:22]} Re6 {[%emt 0:00:22]} 32. g4 {[%emt 0:01:13]} c5+ {[%emt 0:00:17]} 33. Kc3 {[%emt 0:00:29]} Kd7 {[%emt 0:00:23]} 34. g5 {[%emt 0:00:38]} Kc6 {[%emt 0:00:52]} 35. Rf1 {[%emt 0:01:45]} Bf5 {[%emt 0:00:07]} 36. Rh1 {[%emt 0:02:33]} Rd6 {[%emt 0:00:15]} 37. Rh8 {[%emt 0:03:14]} Rd3+ {[%emt 0:00:18]} 38. Kb2 {[%emt 0:00:08]} a5 {[%emt 0:01:47]} 39. Rf8 {[%emt 0:00:50]} Rd6 {[%emt 0:04:32]} 40. Kc3 {[%emt 0:00:56]} Rd3+ {[%emt 0:00:09]} 41. Kb2 {[%emt 0:00:05]} Rd6 {[%emt 0:00:04]} 42. Kc3 {[%emt 0:00:04]} Rd3+ {[%emt 0:01:12]} 43. Kb2 {[%emt 0:00:06]} Rd6 {[%emt 0:00:05] Weighted Error Value: White=0.07 (flawless) /Black=0.06 (flawless)} 1/2-1/2